bitfinex/quotes_ETHUSD_20241105
["timestamp","ask_amount","ask_price","bid_price","bid_amount"]
[1730771391450,4.14707,2411.4,2410.7,0.72071558]
[1730771391751,4.14707,2411.4,2410.8,4.42512787]
[1730771391978,4.14707,2411.4,2410.9,0.27721787]
[1730771392247,4.14707,2411.4,2410.8,4.14791]
[1730771392588,4.14715,2411.3,2410.9,0.27725383]
[1730771392802,4.14715,2411.3,2411.0,0.27717274]
[1730771392946,4.14715,2411.3,2410.8,0.44348918]
[1730771393146,4.14727,2411.3,2410.9,0.27715672]
[1730771393348,4.14749,2411.1,2410.6,0.44348918]
[1730771393682,0.12755646,2411.0,2410.7,0.27710475]
[1730771394015,0.12755646,2411.0,2410.8,0.27710475]
[1730771394284,4.14749,2411.1,2410.9,0.27710475]
[1730771394471,4.14749,2411.1,2410.7,0.44348918]
[1730771394646,4.14779,2411.0,2410.8,0.27710916]
[1730771394847,0.7774,2411.1,2410.9,0.27710916]
[1730771395081,0.7774,2411.1,2410.7,0.44348918]
[1730771395289,4.14775,2411.0,2410.8,0.27711359]
[1730771395494,4.92492,2411.1,2410.9,0.27711359]
[1730771395659,4.14784,2410.9,2410.7,0.44348918]
[1730771395852,4.14784,2410.9,2410.4,4.94107]
[1730771396054,4.14784,2410.9,2410.5,0.44338426]
[1730771396055,4.148,2410.8,2410.5,0.44338426]
[1730771396347,4.148,2410.8,2410.6,0.27712695]
[1730771396547,4.977584,2410.8,2410.7,0.27712695]
[1730771396785,4.14844,2410.6,2410.3,0.44335942]
[1730771396950,4.14844,2410.6,2410.4,0.27715103]
[1730771396951,4.14851,2410.5,2410.4,0.27715103]
[1730771397144,4.14844,2410.6,2410.4,0.27715103]
[1730771397145,8.241418,2410.6,2410.4,0.27715103]
[1730771397351,8.241418,2410.6,2410.0,3.22343451]
[1730771397352,4.092948,2410.6,2410.2,0.44350049]
[1730771397650,4.14879,2410.4,2410.3,0.27715516]
[1730771398439,4.14879,2410.4,2409.8,1.3205423]
[1730771398440,4.1489,2410.3,2409.9,0.44353226]
[1730771398583,4.14904,2410.2,2410.0,0.72064919]
[1730771398928,4.14903,2410.2,2410.1,0.27711693]
[1730771399531,4.14903,2410.2,2409.8,0.443307]
[1730771399687,4.14903,2410.2,2409.7,7.37330451]
[1730771399884,4.14903,2410.2,2409.9,0.72037019]
[1730771400118,4.14903,2410.2,2410.0,0.27706054]
[1730771400422,4.1492,2410.1,2409.8,0.44332951]
[1730771400627,4.1492,2410.1,2409.9,0.72038704]
[1730771400828,4.1492,2410.1,2410.0,0.27705753]
[1730771401031,0.823,2410.3,2410.0,0.27705753]
[1730771401236,0.7757,2410.7,2410.5,4.1485]
[1730771401517,4.148,2410.8,2410.6,0.27682083]
[1730771401732,4.148,2410.8,2410.3,0.44307324]
[1730771401733,0.8033,2410.6,2410.3,0.44307324]
[1730771401881,4.14851,2410.5,2410.4,0.27684482]
[1730771402230,4.14903,2410.2,2410.1,0.27684482]
[1730771402395,4.14903,2410.2,2410.1,0.27682651]
[1730771402596,0.7819,2410.2,2410.1,0.27682651]
[1730771403083,4.14882,2410.4,2410.1,0.71975485]
[1730771403283,4.14882,2410.4,2410.2,0.71960544]
[1730771403513,4.14882,2410.4,2409.9,4.70358305]
[1730771403514,4.14882,2410.4,2410.3,0.27682651]
[1730771404228,4.93055,2410.5,2410.3,0.27682651]
[1730771404229,0.7819,2410.5,2410.3,0.27682651]
[1730771404426,4.14868,2410.4,2410.1,0.55415305]
[1730771404601,0.12153645,2410.3,2410.2,0.71971279]
[1730771404791,9.07926,2410.5,2410.2,0.71971279]
[1730771404997,0.12153645,2410.4,2410.3,0.27680697]
[1730771405431,0.12153645,2410.4,2410.0,4.14936]
[1730771405584,0.12153645,2410.4,2410.3,0.71976831]
[1730771405946,4.27024645,2410.4,2410.3,0.27682905]
[1730771406718,0.12153645,2410.4,2410.3,0.71984375]
[1730771406927,4.27021645,2410.4,2410.3,0.71984375]
[1730771407820,4.27021645,2410.4,2410.3,0.27682905]
[1730771408026,5.1902821,2410.4,2410.3,0.27682905]
[1730771408322,5.1902821,2410.4,2410.3,0.17321929]
[1730771408323,5.05776733,2410.4,2410.3,0.17321929]
[1730771408836,1.03755088,2410.4,2409.5,0.52078822]
[1730771408981,4.15006,2409.6,2409.5,0.0593598]
[1730771409424,4.26754523,2409.6,2409.5,0.50292348]
[1730771409625,5.19047175,2409.6,2409.5,0.50292348]
[1730771409795,5.19047175,2409.6,2409.5,1.05739408]
[1730771409996,5.19047175,2409.6,2409.5,0.0593598]
[1730771410542,5.96947175,2409.6,2409.5,0.0593598]
[1730771410827,5.96947175,2409.6,2408.7,0.7837]
[1730771410828,4.15144,2408.8,2408.7,0.46200758]
[1730771411042,4.26822525,2408.8,2408.7,0.99910993]
[1730771411193,4.26822525,2408.8,2408.7,0.44404174]
[1730771411393,5.87957678,2408.8,2408.7,0.99916365]
[1730771411590,5.87957678,2408.8,2408.7,0.44404174]
[1730771411889,5.03762525,2408.8,2408.7,0.44404174]
[1730771412210,5.03762525,2408.8,2408.7,0.99904289]
[1730771412588,0.88618525,2408.8,2408.7,0.99904289]
[1730771412894,5.03762525,2408.8,2408.5,0.46241819]
[1730771413211,5.03762525,2408.8,2408.7,0.44389248]
[1730771413436,5.03762525,2408.8,2408.7,1.44272356]
[1730771413610,5.95651678,2408.8,2408.7,1.44272356]
[1730771413925,5.95651678,2408.8,2408.7,0.88781029]
[1730771416125,5.95651678,2408.8,2408.7,0.44389248]
[1730771416325,5.95651678,2408.8,2408.7,0.88782009]
[1730771417237,5.03762525,2408.8,2408.7,0.88782009]
[1730771417596,5.03762525,2408.8,2408.7,1.44201951]
[1730771418141,5.03762525,2408.8,2408.7,0.99812703]
[1730771419617,0.11678525,2408.8,2408.7,0.99812703]
[1730771420134,4.15113,2409.0,2408.7,1.27314689]
[1730771420291,4.96086,2409.1,2408.6,0.4613248]
[1730771420292,0.11441707,2408.8,2408.6,0.4613248]
[1730771420628,4.96086,2409.1,2408.7,1.27301809]
[1730771420832,0.11060317,2409.0,2408.8,1.27301809]
[1730771420993,0.11060317,2409.0,2408.9,1.27301809]
[1730771421513,4.19604643,2412.0,2408.9,1.73434289]
[1730771421514,0.7831,2409.4,2408.9,1.73434289]
[1730771421836,4.1511,2409.0,2408.7,0.4613248]
[1730771422161,4.15144,2408.8,2408.6,0.4613248]
[1730771422431,4.1511,2409.0,2408.7,1.27354746]
[1730771422617,0.11075068,2408.9,2408.8,1.27354746]
[1730771422820,4.26202068,2408.9,2408.8,1.27354746]
[1730771423833,4.26202068,2408.9,2408.8,1.27446163]
[1730771424141,5.01722068,2408.9,2408.8,1.27446163]
[1730771424443,0.11075068,2408.9,2408.8,1.27446163]
[1730771424596,4.90622,2409.1,2408.8,1.7362536]
[1730771424796,0.11092584,2409.0,2408.9,1.27446163]
[1730771424997,4.15075,2409.2,2408.9,1.7362536]
[1730771425210,0.11092584,2409.1,2409.0,1.27446163]
[1730771425406,0.11092584,2409.1,2409.0,1.7362536]
[1730771425635,0.7552,2409.3,2409.0,1.7362536]
[1730771425811,4.26168584,2409.2,2409.1,1.27446163]
[1730771427119,4.26168584,2409.2,2409.1,1.7362536]
[1730771427321,4.26168584,2409.2,2408.7,4.15145]
[1730771427529,4.26168584,2409.2,2409.1,0.72134184]
[1730771427740,4.26168584,2409.2,2409.1,1.73876774]
[1730771427901,4.26168584,2409.2,2409.1,1.27624236]
[1730771428237,4.26168584,2409.2,2409.1,1.73876774]
[1730771428465,5.17843442,2409.2,2409.1,1.73876774]
[1730771428611,5.17843442,2409.2,2409.1,1.27624236]
[1730771430164,5.17843442,2409.2,2409.1,0.72134184]
[1730771430758,8.17843442,2409.2,2409.1,0.72134184]
[1730771430934,8.99403442,2409.2,2409.1,0.27743424]
[1730771431314,8.99403442,2409.2,2409.1,0.72160722]
[1730771431718,8.99403442,2409.2,2409.1,1.27701675]
[1730771431945,9.04554157,2409.2,2409.1,1.27701675]
[1730771434052,5.12879299,2409.2,2409.1,1.27701675]
[1730771434845,4.151,2409.1,2409.0,0.462914]
[1730771435076,4.151,2409.1,2409.0,1.46277855]
[1730771435277,4.313433,2409.1,2409.0,1.27759223]
[1730771435453,4.313433,2409.1,2409.0,1.74089246]
[1730771435657,4.313433,2409.1,2409.0,1.27759223]
[1730771435874,5.2414123,2409.1,2409.0,1.27759223]
[1730771436653,5.2414123,2409.1,2409.0,1.7409175]
[1730771436985,5.2414123,2409.1,2409.0,1.27759223]
[1730771438086,4.313433,2409.1,2409.0,1.27759223]
[1730771438386,4.313433,2409.1,2409.0,1.28188547]
[1730771440071,4.313353,2409.1,2409.0,1.28188547]
[1730771440595,0.162433,2409.1,2409.0,1.28188547]
[1730771440770,4.313353,2409.1,2409.0,1.28188547]
[1730771441962,4.313353,2409.1,2408.8,0.7908]
[1730771442164,4.313353,2409.1,2409.0,0.44657856]
[1730771442475,0.162433,2409.1,2409.0,5.43502141]
[1730771442782,5.811702,2409.8,2409.0,2.07472141]
[1730771442783,4.15049,2409.4,2409.0,2.07472141]
[1730771443096,4.15071,2409.3,2409.1,1.28392141]
[1730771443298,4.15071,2409.3,2409.2,1.2827512]
[1730771443299,4.15058,2409.3,2409.2,1.2827512]
[1730771443457,0.8184,2409.6,2409.2,0.72502069]
[1730771443661,0.8184,2409.6,2409.3,0.72502069]
[1730771443662,4.15046,2409.4,2409.3,0.72502069]
[1730771445585,4.15046,2409.4,2409.3,0.72506191]
[1730771445791,4.15046,2409.4,2409.3,0.27886501]
[1730771445995,4.15061,2409.3,2409.1,0.46481948]
[1730771446167,4.15041,2409.4,2409.2,0.72506308]
[1730771446493,4.15041,2409.4,2409.1,0.46481948]
[1730771446494,4.15006,2409.6,2409.3,0.72506308]
[1730771446829,4.15033,2409.5,2409.4,0.72506308]
[1730771447329,4.15023,2409.5,2409.4,0.72506308]
[1730771448604,4.14997,2409.7,2409.4,0.72506308]
[1730771448811,4.90667,2410.0,2409.5,0.72506308]
[1730771448812,4.14965,2409.9,2409.5,0.72506308]
[1730771449007,4.14965,2409.9,2409.6,0.72506308]
[1730771449214,4.14928,2410.1,2409.7,0.72454036]
[1730771449411,0.8331,2410.4,2409.8,1.53964036]
[1730771449739,4.14886,2410.3,2409.9,0.72454036]
[1730771449909,4.14864,2410.5,2410.0,4.87383036]
[1730771450094,4.14861,2410.5,2410.1,0.72454036]
[1730771450296,4.14861,2410.5,2410.0,4.14929]
[1730771450297,0.15774678,2410.4,2410.2,0.72454036]
[1730771450493,4.30642678,2410.4,2410.3,0.27866442]
[1730771451235,0.15774678,2410.4,2410.3,0.27866442]
[1730771452392,0.15774678,2410.4,2410.0,4.14937]
[1730771452594,4.14886,2410.3,2410.1,0.72190516]
[1730771452793,4.14886,2410.3,2409.9,4.14953]
[1730771453037,4.14914,2410.2,2410.0,0.27767834]
[1730771453233,4.1492,2410.1,2409.8,0.8151]
[1730771453449,4.14951,2410.0,2409.9,0.27761991]
[1730771453648,4.14951,2410.0,2409.5,0.7565]
[1730771453649,4.14951,2410.0,2409.7,0.277619]
[1730771453802,4.14951,2410.0,2409.5,4.90663]
[1730771454124,4.30731678,2409.9,2409.6,0.277593]
[1730771454326,4.30731678,2409.9,2409.7,0.277593]
[1730771454536,4.30731678,2409.9,2409.4,0.44416076]
[1730771454743,4.30733678,2409.9,2409.5,0.27759544]
[1730771454976,4.30733678,2409.9,2409.4,4.15038]
[1730771454977,8.45698678,2409.9,2409.4,4.15038]
[1730771455183,8.45698678,2409.9,2409.5,0.2775845]
[1730771455483,8.45698678,2409.9,2409.4,4.15038]
[1730771455627,4.30733678,2409.9,2409.5,0.27755069]
[1730771455827,0.15774678,2409.9,2409.4,4.15038]
[1730771456033,4.14932,2410.1,2409.6,0.7957]
[1730771456253,0.15774678,2409.8,2409.6,0.7957]
[1730771456439,4.14955,2409.9,2409.6,0.7957]
[1730771456642,0.15774678,2409.7,2409.6,0.7957]
[1730771456841,4.1498,2409.8,2409.3,5.41127549]
[1730771457069,4.14955,2409.9,2409.4,0.27752794]
[1730771457070,0.15774678,2409.7,2409.4,0.27752794]
[1730771457240,0.15774678,2409.7,2409.5,0.27752794]
[1730771457442,4.14955,2409.9,2409.5,0.27752794]
[1730771457766,0.8147,2410.2,2409.5,0.27752794]
[1730771458081,4.14837,2410.6,2410.1,4.1491]
[1730771458367,4.14837,2410.6,2410.0,3.22343451]
[1730771458368,4.14859,2410.5,2410.2,0.8168]
[1730771458583,4.14819,2410.7,2410.2,0.8168]
[1730771458870,0.8045,2410.8,2410.2,0.8168]
[1730771458871,4.95262,2410.8,2410.2,0.8168]
[1730771459076,4.14841,2410.6,2410.2,0.8168]
[1730771459283,4.14809,2410.8,2410.3,4.14875]
[1730771459434,2.16770055,2411.4,2410.3,4.14875]
[1730771459435,0.8045,2411.2,2410.3,4.14874]
[1730771459630,0.8045,2411.2,2410.4,0.89976847]
[1730771459835,4.14717,2411.3,2410.7,4.14806]
[1730771459836,5.808013,2411.3,2410.7,4.14806]
[1730771460046,4.14734,2411.2,2410.7,4.14806]
[1730771460249,4.9514,2411.5,2410.9,4.96616]
[1730771460460,2.484996,2411.8,2411.1,4.14734]
[1730771460737,0.8115,2412.1,2411.0,4.14753]
[1730771461098,4.641772,2412.0,2411.5,0.778]
[1730771461276,4.14612,2411.9,2411.5,0.778]
[1730771461945,4.14628,2411.8,2411.5,0.778]
[1730771462569,4.14568,2412.2,2411.5,0.778]
[1730771462808,4.14507,2412.5,2411.5,4.92469]
[1730771462982,4.14554,2412.3,2411.8,4.14625]
[1730771463187,4.14576,2412.1,2411.5,4.00143451]
[1730771463382,4.14576,2412.1,2411.5,4.92468]
[1730771463582,4.14576,2412.1,2411.6,4.14658]
[1730771463874,4.14576,2412.1,2411.6,4.22950365]
[1730771464075,4.14576,2412.1,2411.6,4.14658]
[1730771464076,8.29163,2412.1,2411.6,4.14658]
[1730771464395,4.14576,2412.1,2411.6,4.14658]
[1730771464786,4.14629,2411.8,2411.5,0.778]
[1730771465409,4.14629,2411.8,2411.2,4.14725]
[1730771465615,4.14659,2411.7,2411.2,4.14725]
[1730771466517,4.14629,2411.8,2411.1,0.7904]
[1730771466813,4.14663,2411.6,2411.1,4.93785]
[1730771467020,4.14637,2411.8,2411.2,4.1473]
[1730771467310,4.14658,2411.7,2411.1,4.93785]
[1730771467716,4.14691,2411.5,2411.1,0.7904]
[1730771467878,4.14664,2411.6,2411.1,0.7904]
[1730771467879,4.1471,2411.4,2411.1,0.7904]
[1730771468080,4.1471,2411.4,2410.8,4.91828]
[1730771468414,8.2941,2411.4,2410.8,4.91836]
[1730771468618,0.15571564,2411.3,2410.8,4.91836]
[1730771468823,0.15571564,2411.3,2410.8,0.7704]
[1730771469279,0.15571564,2411.3,2410.8,4.91831]
[1730771469486,4.14727,2411.3,2410.8,4.91831]
[1730771469776,0.15571564,2411.2,2410.8,0.7704]
[1730771470021,0.15571564,2411.2,2410.8,4.98560092]
[1730771470257,0.8002,2411.5,2410.8,0.75476534]
[1730771470459,4.14766,2411.0,2410.5,4.14851]
[1730771470826,0.15571564,2410.9,2410.5,4.14851]
[1730771471451,0.15571564,2410.9,2410.4,3.80712889]
[1730771471452,4.14801,2410.8,2410.4,3.80712889]
[1730771471620,4.14818,2410.7,2410.2,4.1489]
[1730771471820,4.14742,2411.2,2410.5,4.14835]
[1730771472024,0.15571564,2410.6,2410.5,4.23130965]
[1730771472240,0.15571564,2410.6,2410.5,8.67148469]
[1730771472559,4.14753,2411.1,2410.5,8.67148469]
[1730771472767,0.15672145,2411.0,2410.6,4.42362767]
[1730771473075,0.15672145,2411.0,2410.9,4.14782]
[1730771473223,0.15672145,2411.0,2410.9,4.8638258]
[1730771473417,4.1467,2411.6,2411.1,4.14742]
[1730771473623,8.29342,2411.6,2411.1,7.95454889]
[1730771473846,0.15663843,2411.5,2411.1,7.95454889]
[1730771474066,0.15663843,2411.5,2411.1,3.89007543]
[1730771474242,0.15663843,2411.5,2411.3,4.14712]
[1730771474455,0.7974,2411.9,2411.3,4.14703]
[1730771474456,4.94351,2411.9,2411.3,4.14703]
[1730771474759,4.14628,2411.8,2411.2,4.58811676]
[1730771474919,0.15663843,2411.7,2411.3,4.4226203]
[1730771475122,4.14646,2411.7,2411.4,0.2754903]
[1730771475351,4.14646,2411.7,2411.2,4.1473]
[1730771475352,0.15663843,2411.6,2411.2,4.1473]
[1730771475554,4.30325843,2411.6,2411.3,0.27558906]
[1730771475723,4.30325843,2411.6,2411.2,0.44096641]
[1730771475928,0.15663843,2411.6,2411.3,0.27559018]
[1730771476130,8.29281,2411.8,2411.4,0.27559018]
[1730771476437,8.29282,2411.8,2411.5,0.27559018]
[1730771476634,4.30308843,2411.7,2411.3,0.44113086]
[1730771476955,0.15663843,2411.7,2411.4,0.27569432]
[1730771477123,4.14639,2411.8,2411.5,0.2757485]
[1730771477326,4.30312843,2411.7,2411.3,0.4412494]
[1730771477541,4.30312843,2411.7,2411.4,0.27588637]
[1730771477867,4.30312843,2411.7,2411.5,0.27586986]
[1730771478070,4.30312843,2411.7,2411.3,0.44139962]
[1730771478240,4.30312843,2411.7,2411.4,0.27587979]
[1730771478440,4.14664,2411.6,2411.5,0.27587979]
[1730771478870,4.30380409,2411.6,2411.5,0.27587979]
[1730771479176,5.9485235,2411.6,2411.5,0.27587979]
[1730771479475,4.14717,2411.3,2411.0,0.7505]
[1730771479681,4.14748,2411.2,2411.1,0.27616043]
[1730771479852,4.30456111,2411.2,2411.1,0.27616043]
[1730771480341,0.15708111,2411.2,2411.1,0.27616043]
[1730771480570,4.30439111,2411.2,2411.1,0.27628682]
[1730771481507,5.14954622,2411.2,2411.1,0.27628682]
[1730771481792,5.14954622,2411.2,2410.7,0.4422062]
[1730771481793,4.148,2410.8,2410.7,0.4422062]
[1730771482004,4.148,2410.8,2410.7,0.71862575]
[1730771482173,0.1566016,2410.8,2410.7,1.08111955]
[1730771482363,0.7973,2411.5,2410.8,4.14783]
[1730771482364,4.94423,2411.5,2410.8,4.14783]
[1730771482695,4.3036716,2411.4,2410.9,5.41927528]
[1730771482903,4.3036716,2411.4,2411.0,1.27155528]
[1730771483203,4.3036716,2411.4,2411.1,0.71869498]
[1730771483359,4.3036716,2411.4,2411.2,0.71869498]
[1730771483556,4.3036716,2411.4,2411.3,0.27641955]
[1730771484301,0.1566016,2411.4,2411.3,0.27641955]
[1730771484506,0.1566016,2411.4,2411.3,0.71884845]
[1730771484660,0.1566016,2411.4,2411.3,0.71895095]
[1730771484858,4.3035616,2411.4,2411.3,0.71895095]
[1730771485304,0.1566016,2411.4,2411.3,0.71895095]
[1730771485601,4.14674,2411.6,2411.3,0.71895095]
[1730771485790,4.3035616,2411.4,2410.9,4.60871455]
[1730771485966,8.29401,2411.4,2411.0,1.27299858]
[1730771486166,0.1566016,2411.3,2411.1,1.27299858]
[1730771486393,0.1566016,2411.3,2411.2,1.27299858]
[1730771487275,4.3037416,2411.3,2411.2,1.27299858]
[1730771487490,5.14881176,2411.3,2411.2,1.27408906]
[1730771487672,5.91491176,2411.3,2411.2,0.7195084]
[1730771487877,5.91491176,2411.3,2411.2,0.27672907]
[1730771488064,4.148,2410.8,2410.7,0.55493152]
[1730771488286,4.9141,2410.8,2410.7,0.44394212]
[1730771488492,5.07075694,2410.8,2410.7,0.44394212]
[1730771488803,4.30465694,2410.8,2410.7,0.44420492]
[1730771488975,4.30465694,2410.8,2410.7,0.88839116]
[1730771489178,4.30465694,2410.8,2410.7,1.88770886]
[1730771489479,4.30465694,2410.8,2410.7,1.44352262]
[1730771489786,5.92810763,2410.8,2410.7,1.44352262]
[1730771491600,5.92810763,2410.8,2410.7,0.88833898]
[1730771492278,5.08285694,2410.8,2410.7,0.88833898]
[1730771492465,4.30465694,2410.8,2410.7,0.88833898]
[1730771492976,4.30465694,2410.8,2410.7,0.88799908]
[1730771496771,4.30465694,2410.8,2410.7,0.44420492]
[1730771497111,4.30465694,2410.8,2410.7,0.88795675]
[1730771498467,4.14828,2410.7,2410.4,0.55416351]
[1730771498667,4.14828,2410.7,2410.5,0.99745578]
[1730771498909,0.15541177,2410.6,2410.2,7.83664281]
[1730771499106,0.15541177,2410.6,2410.3,0.99743285]
[1730771499405,4.14782,2410.9,2410.4,0.99743285]
[1730771499569,4.30392177,2410.5,2410.2,3.22537778]
[1730771499950,4.14868,2410.4,2410.3,0.99748041]
[1730771500115,4.14868,2410.4,2410.3,1.27466151]
[1730771500272,5.12334415,2410.4,2410.3,0.72044744]
[1730771500467,5.12334415,2410.4,2410.3,0.27709021]
[1730771500700,5.12334415,2410.4,2409.9,7.37490778]
[1730771500975,4.14887,2410.3,2410.0,1.27498469]
[1730771501168,4.14887,2410.3,2410.1,0.72061445]
[1730771501484,8.29786,2410.3,2410.2,0.27714432]
[1730771502825,9.209586,2410.3,2410.2,0.27714432]
[1730771503028,4.14972,2409.8,2409.4,0.55424521]
[1730771503315,0.7613,2410.2,2409.2,1.36634521]
[1730771503316,4.15023,2409.5,2409.2,1.36634521]
[1730771503627,4.15023,2409.5,2409.3,0.72034773]
[1730771503828,4.15023,2409.5,2409.4,0.27705186]
[1730771504330,4.1506,2409.3,2409.1,0.44308188]
[1730771504487,8.30059,2409.5,2409.2,0.27694601]
[1730771504683,4.15045,2409.4,2409.3,0.27694601]
[1730771505339,4.15058,2409.3,2409.2,0.27678885]
[1730771505623,4.15058,2409.3,2409.2,0.27678214]
[1730771505837,4.565638,2409.3,2408.9,0.44308188]
[1730771505987,4.565638,2409.3,2409.0,0.27681893]
[1730771505988,4.15092,2409.1,2409.0,0.27681893]
[1730771506191,4.15127,2408.9,2408.8,0.27681893]
[1730771506398,4.15127,2408.9,2408.6,0.7778]
[1730771506693,4.15144,2408.8,2408.5,0.27686216]
[1730771506890,4.15129,2408.9,2408.5,0.27692039]
[1730771507092,4.15129,2408.9,2408.3,4.9894598]
[1730771507093,8.30268,2408.9,2408.3,4.9894598]
[1730771507295,8.30266,2408.9,2408.4,0.2766695]
[1730771507601,4.15152,2408.8,2408.4,0.2766695]
[1730771508135,1.637981,2408.8,2408.3,0.0593598]
[1730771508287,4.15162,2408.7,2408.4,0.27676819]
[1730771508490,4.15162,2408.7,2408.3,0.33590951]
[1730771508890,4.15162,2408.7,2408.3,0.0593598]
[1730771509086,3.30014,2408.8,2408.3,0.0593598]
[1730771509087,4.15203,2408.5,2408.3,0.0593598]
[1730771510012,5.789541,2408.8,2408.3,0.0593598]
[1730771510214,4.15121,2409.0,2408.5,4.94473]
[1730771510414,4.15121,2409.0,2408.5,0.7928]
[1730771510616,4.15153,2408.8,2408.3,0.0593598]
[1730771510987,4.15153,2408.8,2408.3,4.48773992]
[1730771511220,4.15153,2408.8,2408.3,4.2116398]
[1730771511422,4.15153,2408.8,2408.3,0.0593598]
[1730771511608,4.15153,2408.8,2408.3,4.2116298]
[1730771512400,2.077269,2408.9,2408.4,4.15211]
[1730771512602,4.15105,2409.1,2408.6,4.15178]
[1730771512845,1.662012,2409.1,2408.7,0.8197]
[1730771513205,5.813002,2409.1,2408.7,0.8197]
[1730771513606,0.151635,2409.0,2408.7,0.8197]
[1730771514425,0.151635,2409.0,2408.5,4.15195]
[1730771515949,4.15128,2408.9,2408.4,8.78699307]
[1730771516115,4.15128,2408.9,2408.5,0.2758437]
[1730771516320,0.15182907,2408.8,2408.5,4.4277737]
[1730771516519,0.15182907,2408.8,2408.5,4.15193]
[1730771516719,1.662012,2409.1,2408.6,0.27588048]
[1730771517039,1.662012,2409.1,2408.8,4.15133]
[1730771517223,0.15182907,2409.0,2408.9,0.7676]
[1730771517623,5.812471,2409.3,2408.9,0.7676]
[1730771517928,4.15014,2409.6,2409.0,4.15097]
[1730771518132,5.811871,2409.6,2409.0,7.96625307]
[1730771518306,1.661731,2409.6,2409.1,4.15092]
[1730771518513,4.96795,2409.8,2409.2,4.42648528]
[1730771518514,9.1178,2409.8,2409.2,4.42648528]
[1730771518711,4.15014,2409.6,2409.1,4.15092]
[1730771518917,4.14993,2409.7,2409.2,4.97721]
[1730771519118,4.14993,2409.7,2409.2,0.8265]
[1730771519317,4.15006,2409.6,2409.2,0.8265]
[1730771521252,4.14991,2409.7,2409.2,4.97724]
[1730771521440,0.9961323,2409.7,2409.0,0.8259]
[1730771521752,1.661563,2409.8,2408.8,4.15141]
[1730771521753,4.15061,2409.3,2408.8,5.41892613]
[1730771521936,4.15061,2409.3,2408.9,0.27609497]
[1730771522136,4.15061,2409.3,2409.0,0.27609497]
[1730771522505,4.15053,2409.4,2409.1,0.27624433]
[1730771522660,4.15053,2409.4,2408.9,4.59293613]
[1730771522833,4.15053,2409.4,2409.0,0.27624693]
[1730771523032,4.1506,2409.3,2409.1,0.27624693]
[1730771523357,4.1506,2409.3,2408.9,0.44170613]
[1730771523358,4.1511,2409.0,2408.9,0.44170613]
[1730771523528,4.15127,2408.9,2408.6,0.71883069]
[1730771523736,4.15127,2408.9,2408.7,0.27648392]
[1730771524061,4.15144,2408.8,2408.5,0.8276]
[1730771524270,4.15161,2408.7,2408.6,0.27663459]
[1730771524559,4.15161,2408.7,2408.3,0.8127598]
[1730771524560,4.15179,2408.6,2408.3,0.8127598]
[1730771524745,0.415161,2408.7,2408.4,0.27668437]
[1730771524948,4.15146,2408.8,2408.5,0.27668437]
[1730771525144,4.15146,2408.8,2408.3,4.9650198]
[1730771525349,4.15146,2408.8,2408.4,0.71957264]
[1730771525526,4.15146,2408.8,2408.5,0.27675376]
[1730771525726,4.15164,2408.7,2408.6,0.27675867]
[1730771525924,0.830113,2409.3,2408.7,4.15161]
[1730771526232,4.15071,2409.3,2408.8,1.03021275]
[1730771526430,4.15071,2409.3,2408.9,0.27681275]
[1730771526659,4.15071,2409.3,2408.8,0.7534]
[1730771526843,4.15071,2409.3,2408.9,0.27675881]
[1730771527173,4.15071,2409.3,2409.0,0.27675881]
[1730771527326,4.15071,2409.3,2408.9,0.44305845]
[1730771527532,4.15071,2409.3,2409.0,0.27691134]
[1730771527835,4.15071,2409.3,2408.9,0.44305748]
[1730771528056,4.15071,2409.3,2409.0,0.27688964]
[1730771528334,4.96641,2409.4,2409.1,0.17312937]
[1730771528681,0.1524297,2409.3,2409.2,0.44310848]
[1730771528967,0.1524297,2409.3,2409.2,5.41965848]
[1730771529168,4.91118,2410.0,2409.2,1.26900848]
[1730771529464,0.15263294,2409.9,2409.6,4.97584]
[1730771529670,0.15263294,2409.9,2409.7,4.59297848]
[1730771530023,0.15263294,2409.9,2409.6,0.90889977]
[1730771530024,4.14929,2410.1,2409.8,0.44310848]
[1730771530134,4.14929,2410.1,2409.6,4.97593]
[1730771530135,8.29858,2410.1,2409.9,0.4434677]
[1730771530466,1.661204,2410.4,2409.7,0.5543527]
[1730771530467,4.1487,2410.4,2409.7,0.5543527]
[1730771530671,4.1487,2410.4,2409.8,0.44356092]
[1730771530672,4.14948,2410.0,2409.8,0.44356092]
[1730771530965,4.14948,2410.0,2409.9,0.44356092]
[1730771531443,0.7588,2410.6,2410.0,4.14937]
[1730771531766,0.7588,2410.6,2410.1,5.34927092]
[1730771531767,4.14838,2410.6,2410.1,5.34927092]
[1730771531979,4.14852,2410.5,2410.2,0.99785011]
[1730771532267,4.14844,2410.6,2410.3,0.44341333]
[1730771532464,4.14844,2410.6,2410.4,0.44341333]
[1730771532465,5.1030042,2410.6,2410.4,0.44341333]
[1730771532690,4.14851,2410.5,2410.2,0.55411485]
[1730771532843,4.14912,2410.2,2409.8,0.7566]
[1730771533044,4.14912,2410.2,2409.9,0.99767095]
[1730771533245,4.14912,2410.2,2410.0,0.44340216]
[1730771533479,4.14912,2410.2,2410.1,0.44340216]
[1730771533798,4.978918,2410.2,2410.1,0.44340216]
[1730771533986,4.14886,2410.3,2410.1,0.44340216]
[1730771534190,4.14862,2410.5,2410.0,4.14937]
[1730771534358,4.14862,2410.5,2410.1,0.99684881]
[1730771534548,4.14869,2410.4,2410.2,0.44304355]
[1730771534747,0.829731,2410.3,2409.9,4.14945]
[1730771534979,4.14862,2410.5,2409.8,8.72146307]
[1730771534980,4.14862,2410.5,2410.1,4.14919]
[1730771535184,4.14869,2410.4,2409.9,0.55356422]
[1730771535376,4.14888,2410.3,2410.0,0.44285422]
[1730771535581,4.14872,2410.4,2409.8,5.45974422]
[1730771535880,4.14872,2410.4,2409.9,4.59251093]
[1730771536089,4.978634,2410.3,2410.0,0.44297093]
[1730771536247,4.14934,2410.1,2409.6,4.70360087]
[1730771536451,4.14934,2410.1,2409.7,0.44308966]
[1730771536652,4.14934,2410.1,2409.8,0.44308966]
[1730771536956,4.14934,2410.1,2409.6,9.63477087]
[1730771537156,4.14934,2410.1,2409.7,0.44318957]
[1730771537485,5.1401264,2410.1,2409.8,0.44318957]
[1730771537721,4.14952,2410.0,2409.6,1.33485087]
[1730771538021,5.1400264,2410.1,2409.7,0.44295277]
[1730771538220,9.2893364,2410.1,2409.7,0.44296353]